bitfinex/quotes_BTCUSD_20240828
["timestamp","ask_amount","ask_price","bid_price","bid_amount"]
[1724877582306,0.0263701,59476.0,59471.0,0.0822]
[1724877582530,0.0263701,59476.0,59471.0,0.1306718]
[1724877582812,0.0263701,59476.0,59472.0,0.168144]
[1724877583039,0.0263701,59476.0,59469.0,0.0662]
[1724877583286,0.168124,59480.0,59471.0,0.168146]
[1724877583523,0.168124,59480.0,59466.0,0.418521]
[1724877583524,0.000816,59482.0,59467.0,0.168159]
[1724877583770,0.000816,59482.0,59468.0,0.191157]
[1724877583771,0.168138,59475.0,59468.0,0.191157]
[1724877584014,0.168138,59475.0,59463.0,0.061]
[1724877584015,0.336287,59473.0,59456.0,0.33638]
[1724877584267,0.336287,59473.0,59454.0,0.0782976]
[1724877584268,0.336309,59470.0,59457.0,0.04756776]
[1724877584487,0.336309,59470.0,59454.0,0.0782976]
[1724877584488,0.336332,59465.0,59454.0,0.0782976]
[1724877584729,0.0798,59474.0,59455.0,0.09811155]
[1724877584979,0.168167,59465.0,59455.0,0.43449855]
[1724877585229,0.100816,59482.0,59455.0,0.09811155]
[1724877585230,0.416146,59463.0,59455.0,0.09811155]
[1724877585461,0.416146,59463.0,59454.0,0.0008976]
[1724877585705,0.168192,59456.0,59454.0,0.0008976]
[1724877585946,0.168194,59455.0,59454.0,0.0008976]
[1724877586433,0.504582,59455.0,59454.0,0.0008976]
[1724877586960,0.0798,59463.0,59454.0,0.0008976]
[1724877587202,0.1796,59469.0,59458.0,0.336371]
[1724877587408,0.336273,59476.0,59470.0,0.168151]
[1724877587409,0.168135,59476.0,59470.0,0.168151]
[1724877587636,0.1,59475.0,59470.0,0.168151]
[1724877587873,0.0796,59477.0,59471.0,0.023]
[1724877588106,0.1796,59477.0,59471.0,0.0398151]
[1724877588347,0.336275,59475.0,59460.0,0.0757]
[1724877588605,0.168169,59464.0,59461.0,0.023]
[1724877588835,0.336281,59474.0,59461.0,0.023]
[1724877588836,0.02637302,59476.0,59475.0,0.243837]
[1724877589070,0.0807,59491.0,59475.0,0.243837]
[1724877589071,0.41689,59491.0,59480.0,0.168122]
[1724877589285,0.41689,59491.0,59477.0,0.336263]
[1724877589286,0.336206,59488.0,59481.0,0.023]
[1724877589510,0.50517,59482.0,59481.0,0.023]
[1724877589723,0.50517,59482.0,59473.0,0.201982]
[1724877589724,0.16812,59481.0,59480.0,0.023]
[1724877590164,0.16812,59481.0,59475.0,0.023]
[1724877590459,0.168127,59479.0,59475.0,0.034224]
[1724877590937,0.168135,59476.0,59475.0,0.034224]
[1724877591159,0.336249,59480.0,59475.0,0.034224]
[1724877591396,0.000816,59482.0,59475.0,0.023]
[1724877591397,0.168135,59476.0,59475.0,0.023]
[1724877591644,0.0801,59478.0,59467.0,0.336317]
[1724877591645,0.0801,59478.0,59476.0,0.01262007]
[1724877591909,0.005,59498.0,59476.0,0.01262007]
[1724877591910,0.168063,59502.0,59490.0,0.0784]
[1724877592152,0.168063,59502.0,59477.0,0.0889]
[1724877592153,0.000816,59479.0,59478.0,0.840645]
[1724877592388,0.000816,59479.0,59478.0,1.210743]
[1724877592389,1e-08,59479.0,59478.0,1.210743]
[1724877592643,0.168066,59501.0,59495.0,0.168081]
[1724877592832,0.168073,59498.0,59492.0,0.168089]
[1724877593027,0.336125,59502.0,59482.0,0.336231]
[1724877593028,0.1461,59503.0,59482.0,0.03384]
[1724877593318,0.1461,59503.0,59483.0,0.05684]
[1724877593319,0.0812,59502.0,59483.0,0.05684]
[1724877593543,0.1425,59501.0,59484.0,0.58320786]
[1724877593801,0.336172,59494.0,59485.0,0.08700479]
[1724877594042,0.02636409,59498.0,59483.0,0.05684]
[1724877594312,0.02636409,59498.0,59489.0,0.168098]
[1724877594313,0.168082,59495.0,59489.0,0.168098]
[1724877594545,0.02636409,59498.0,59490.0,0.023]
[1724877594772,0.02636409,59498.0,59483.0,0.05684]
[1724877594773,0.168092,59491.0,59485.0,0.191108]
[1724877594992,0.168092,59491.0,59486.0,0.0247948]
[1724877595256,0.478633,59501.0,59486.0,0.0247948]
[1724877595257,0.0774,59508.0,59497.0,0.672302]
[1724877595501,0.0774,59508.0,59487.0,0.1399]
[1724877595502,0.0774,59517.0,59499.0,0.0767]
[1724877595727,0.51540786,59534.0,59500.0,0.023]
[1724877595728,0.0774,59511.0,59500.0,0.023]
[1724877595964,0.0774,59511.0,59498.0,0.023]
[1724877595965,0.33608,59510.0,59498.0,0.023]
[1724877596213,0.33608,59510.0,59496.0,0.336154]
[1724877596214,0.168056,59504.0,59499.0,0.2207915]
[1724877596438,0.336084,59509.0,59500.0,0.023]
[1724877596664,0.02636071,59510.0,59500.0,0.023]
[1724877596665,0.336107,59505.0,59500.0,0.023]
[1724877596886,0.336107,59505.0,59497.0,0.004]
[1724877596887,0.0774,59511.0,59498.0,0.023]
[1724877597360,0.0758,59520.0,59517.0,0.168017]
[1724877597580,0.0758,59520.0,59499.0,0.59690786]
[1724877597581,0.168009,59521.0,59518.0,0.0398017]
[1724877598115,0.168009,59521.0,59518.0,0.023]
[1724877598266,0.0758,59527.0,59518.0,0.023]
[1724877598500,0.0758,59527.0,59512.0,0.0815]
[1724877598501,0.168013,59520.0,59516.0,0.023]
[1724877598725,0.0758,59527.0,59517.0,0.0191024]
[1724877598726,0.168013,59519.0,59517.0,0.0191024]
[1724877598943,0.19436518,59521.0,59518.0,0.023]
[1724877599192,0.19436518,59521.0,59518.0,0.0444024]
[1724877599193,0.02635618,59521.0,59518.0,0.0444024]
[1724877599433,0.02635618,59521.0,59520.0,0.16801]
[1724877599655,0.02635618,59521.0,59520.0,0.503031]
[1724877599888,0.02635618,59521.0,59520.0,0.526031]
[1724877600139,0.02635618,59521.0,59520.0,0.862052]
[1724877600358,0.02735618,59521.0,59520.0,0.9899108]
[1724877600864,0.001,59521.0,59520.0,0.7506898]
[1724877601076,0.02735317,59521.0,59520.0,1.09482979]
[1724877601986,0.02735317,59521.0,59520.0,0.75880879]
[1724877602205,0.02735317,59521.0,59520.0,1.09482979]
[1724877602451,0.02635317,59521.0,59520.0,0.63094999]
[1724877602684,0.02635317,59521.0,59520.0,0.04511899]
[1724877602929,0.0831,59524.0,59520.0,0.00811899]
[1724877603174,0.504022,59521.0,59520.0,0.02211899]
[1724877603436,0.419101,59524.0,59512.0,0.336066]
[1724877603669,0.336015,59522.0,59513.0,0.0705979]
[1724877603912,0.000816,59523.0,59513.0,0.00817309]
[1724877603913,0.336021,59520.0,59513.0,0.00817309]
[1724877604129,0.000816,59523.0,59513.0,0.00817309]
[1724877604130,0.336027,59519.0,59513.0,0.00817309]
[1724877604374,0.336051,59515.0,59513.0,0.02100481]
[1724877604610,0.336051,59515.0,59509.0,0.03384]
[1724877604611,0.336052,59515.0,59509.0,0.03384]
[1724877604838,0.02635481,59519.0,59509.0,0.03384]
[1724877605074,0.02635481,59519.0,59510.0,0.0201882]
[1724877605075,0.168035,59512.0,59510.0,0.0201882]
[1724877605349,0.336044,59516.0,59505.0,0.00336068]
[1724877605350,0.168029,59514.0,59505.0,0.00336068]
[1724877605557,0.336034,59518.0,59504.0,0.336109]
[1724877605558,0.336035,59518.0,59506.0,0.20978597]
[1724877605875,0.16804,59510.0,59506.0,0.20978597]
[1724877605983,0.33607,59512.0,59506.0,0.04173697]
[1724877606224,0.168035,59512.0,59508.0,0.168044]
[1724877606474,0.168035,59512.0,59506.0,0.04173697]
[1724877606475,0.0798,59514.0,59499.0,0.51064]
[1724877606698,0.840152,59513.0,59512.0,0.014]
[1724877606931,0.336128,59501.0,59496.0,0.04960535]
[1724877607179,0.02835508,59516.0,59486.0,0.5015948]
[1724877607180,0.336168,59494.0,59486.0,0.0247948]
[1724877607417,0.336168,59494.0,59484.0,0.0774]
[1724877607418,0.336159,59496.0,59484.0,0.0774]
[1724877607640,0.0752,59500.0,59489.0,0.168097]
[1724877607883,1.251669,59500.0,59499.0,0.014]
[1724877608130,0.511334,59500.0,59480.0,0.168123]
[1724877608396,0.336196,59490.0,59482.0,0.50540786]
[1724877608611,0.336196,59490.0,59477.0,0.00020239]
[1724877608612,0.58541,59487.0,59486.0,0.014]
[1724877608839,0.921617,59487.0,59486.0,0.014]
[1724877609062,1.257824,59487.0,59486.0,0.014]
[1724877609303,1.357824,59487.0,59486.0,0.014]
[1724877609534,1.421824,59487.0,59486.0,0.014]
[1724877609785,1.421824,59487.0,59477.0,0.00020239]
[1724877609786,0.168119,59482.0,59477.0,0.00020239]
[1724877610042,0.581312,59487.0,59486.0,0.00818587]
[1724877610043,0.436212,59487.0,59486.0,0.00818587]
[1724877610278,0.1,59487.0,59477.0,0.03721306]
[1724877610511,0.02936755,59487.0,59482.0,0.0776]
[1724877610729,0.02936755,59487.0,59486.0,0.011]
[1724877610952,0.02936755,59487.0,59478.0,0.00824777]
[1724877610953,0.168113,59484.0,59479.0,0.168125]
[1724877611165,0.336214,59486.0,59480.0,0.21571374]
[1724877611610,0.168113,59484.0,59480.0,0.04759274]
[1724877611837,0.168113,59484.0,59481.0,0.06297741]
[1724877612056,0.168113,59484.0,59482.0,0.023]
[1724877612378,0.02636755,59487.0,59486.0,0.840532]
[1724877612611,0.02636755,59487.0,59486.0,0.863532]
[1724877612848,0.168074,59498.0,59486.0,0.1288432]
[1724877613062,0.02636509,59500.0,59490.0,0.1407]
[1724877613291,0.02636509,59500.0,59499.0,0.16807]
[1724877613503,0.416435,59518.0,59499.0,0.1293219]
[1724877613764,0.0263605,59509.0,59497.0,0.168074]
[1724877614002,0.421435,59518.0,59495.0,0.4768]
[1724877614003,0.168071,59499.0,59495.0,0.4768]
[1724877614178,0.168071,59499.0,59492.0,0.58430786]
[1724877614179,0.50421,59499.0,59498.0,0.023]
[1724877614633,0.336129,59501.0,59492.0,0.0789]
[1724877614634,0.168072,59498.0,59497.0,0.023]
[1724877614860,0.336145,59498.0,59497.0,0.012]
[1724877615084,0.504217,59498.0,59497.0,0.035]
[1724877615297,0.168072,59498.0,59497.0,0.035]
[1724877615519,0.504217,59498.0,59497.0,0.035]
[1724877615739,0.504217,59498.0,59497.0,0.04316094]
[1724877616166,0.504217,59498.0,59497.0,0.03116094]
[1724877616434,0.840362,59498.0,59497.0,0.00816094]
[1724877616649,0.16808,59496.0,59492.0,0.0789]
[1724877616871,0.504217,59498.0,59497.0,0.00816094]
[1724877617113,0.840362,59498.0,59497.0,0.014]
[1724877617315,0.67229,59498.0,59497.0,0.01916094]
[1724877617568,0.67229,59498.0,59497.0,0.025]
[1724877617784,0.69865135,59498.0,59497.0,0.014]
[1724877617994,1.20286835,59498.0,59497.0,0.014]
[1724877618202,1.20286835,59498.0,59497.0,0.039]
[1724877618682,1.20286835,59498.0,59497.0,0.1773]
[1724877618683,0.02636135,59498.0,59497.0,0.1773]
[1724877618935,0.000815,59521.0,59497.0,0.699256]
[1724877619155,0.000815,59521.0,59518.0,0.168014]
[1724877619371,0.000815,59521.0,59519.0,0.0537652]
[1724877619583,0.000815,59521.0,59520.0,0.840052]
[1724877619801,0.02716724,59521.0,59520.0,0.863052]
[1724877620039,0.02716724,59521.0,59520.0,0.1990615]
[1724877620242,0.02716724,59521.0,59520.0,0.5350825]
[1724877620472,0.02716724,59521.0,59520.0,0.93096245]
[1724877620912,0.02916724,59521.0,59520.0,0.94496245]
[1724877621139,0.02916724,59521.0,59520.0,1.36418345]
[1724877621386,0.02916724,59521.0,59520.0,1.35018345]
[1724877621387,0.02716724,59521.0,59520.0,1.35018345]
[1724877621849,0.02716724,59521.0,59520.0,1.36418345]
[1724877622056,0.00816,59542.0,59531.0,0.167979]
[1724877622277,0.00816,59542.0,59526.0,0.167992]
[1724877622278,0.16798,59531.0,59526.0,0.167992]
[1724877622498,0.167974,59533.0,59532.0,0.00795878]
[1724877622750,0.98217,59533.0,59532.0,0.00795878]
[1724877622974,0.50415,59506.0,59505.0,0.50540786]
[1724877623210,0.50415,59506.0,59505.0,0.5135753]
[1724877623211,0.16805,59506.0,59505.0,0.5135753]
[1724877623425,0.50415,59506.0,59505.0,0.00816744]
[1724877623664,0.84025,59506.0,59505.0,0.00816744]
[1724877623913,0.84025,59506.0,59474.0,0.4818]
[1724877623914,0.168079,59496.0,59491.0,0.231592]
[1724877624157,0.168079,59496.0,59475.0,0.005]
[1724877624158,0.0792,59506.0,59483.0,0.33623]
[1724877624390,0.0792,59506.0,59493.0,0.00826024]
[1724877624391,0.16807,59499.0,59493.0,0.00826024]
[1724877624613,0.0792,59506.0,59490.0,0.00828345]
[1724877624842,0.168076,59497.0,59494.0,0.00825251]
[1724877625084,0.0792,59512.0,59492.0,0.00336151]
[1724877625359,0.336096,59507.0,59495.0,0.00824477]
[1724877625595,0.33611,59505.0,59493.0,0.01162147]
[1724877625806,0.16806,59503.0,59497.0,0.168074]
[1724877626036,0.16806,59503.0,59493.0,0.00336123]
[1724877626037,0.0792,59512.0,59484.0,0.399722]
[1724877626268,0.168081,59495.0,59489.0,0.16829935]
[1724877626497,0.168076,59497.0,59493.0,0.012]
[1724877626727,0.001,59499.0,59498.0,0.168072]
[1724877626948,0.336098,59507.0,59499.0,0.168069]
[1724877627177,0.168056,59504.0,59500.0,0.0168069]
[1724877627415,0.168043,59509.0,59501.0,0.336123]
[1724877627657,0.0824,59518.0,59499.0,0.0772]
[1724877627880,0.168051,59506.0,59500.0,0.191065]
[1724877628090,0.168051,59506.0,59500.0,0.190065]
[1724877628545,0.02635874,59505.0,59500.0,0.023]
[1724877628777,0.168056,59504.0,59501.0,0.0280269]
[1724877629324,0.168061,59502.0,59500.0,0.023]
[1724877629499,0.168061,59502.0,59495.0,0.33616]
[1724877629500,0.168061,59502.0,59498.0,0.191072]
[1724877629723,0.168061,59502.0,59500.0,0.014]
[1724877629945,0.16806,59503.0,59500.0,0.014]
[1724877630178,0.16806,59503.0,59501.0,0.0205072]
[1724877630423,0.02635874,59505.0,59501.0,0.014]
[1724877630424,0.504184,59502.0,59501.0,0.014]
[1724877630636,0.02635874,59505.0,59495.0,0.0008965]
[1724877630637,0.02635874,59505.0,59502.0,0.00819064]
[1724877630901,0.001,59504.0,59503.0,0.245258]
[1724877631131,0.001,59504.0,59503.0,0.58955791]
[1724877631344,0.001,59504.0,59503.0,0.92567491]
[1724877631599,0.001,59504.0,59503.0,1.26179191]
[1724877631849,0.001,59504.0,59503.0,0.94867491]
[1724877632093,0.02635874,59505.0,59503.0,0.94867491]
[1724877632094,0.00919341,59505.0,59503.0,1.2200214]
[1724877632327,0.50540786,59540.0,59520.0,0.24441]
[1724877632558,0.50540786,59540.0,59520.0,0.663631]
[1724877632559,0.335964,59531.0,59520.0,0.663631]
[1724877632800,0.167983,59530.0,59520.0,0.67082823]
[1724877633025,0.335943,59534.0,59520.0,1.00684923]
[1724877633026,0.16798,59531.0,59520.0,1.00684923]
[1724877633274,0.335968,59530.0,59520.0,0.19108215]
[1724877633495,0.335968,59530.0,59520.0,0.08939723]
[1724877633744,0.335986,59527.0,59520.0,0.00719723]
[1724877633969,0.168005,59522.0,59520.0,0.02119723]
[1724877634186,0.169822,59521.0,59520.0,0.014]
[1724877634443,0.841852,59521.0,59520.0,0.02119723]
[1724877634667,0.841852,59521.0,59520.0,0.014]
[1724877634668,0.505837,59521.0,59520.0,0.014]
[1724877634906,0.841852,59521.0,59520.0,0.014]
[1724877635135,0.505837,59521.0,59520.0,0.014]
[1724877635545,0.841852,59521.0,59520.0,0.028]
[1724877635774,0.841852,59521.0,59520.0,0.014]
[1724877636189,0.000815,59521.0,59520.0,0.014]
[1724877636402,0.585337,59521.0,59520.0,0.028]
[1724877636610,0.94770632,59521.0,59520.0,0.028]
[1724877636877,1.28372132,59521.0,59520.0,0.028]
[1724877637155,1.256369,59521.0,59520.0,0.014]
[1724877637563,1.25616679,59521.0,59520.0,0.014]
[1724877637774,1.25716679,59521.0,59520.0,0.028]
[1724877637994,1.35716479,59521.0,59520.0,0.028]
[1724877638434,1.35716479,59521.0,59520.0,0.014]
[1724877638435,1.69817979,59521.0,59520.0,0.014]
[1724877638848,1.69817979,59521.0,59520.0,0.027]
[1724877639063,0.504235,59496.0,59495.0,0.0008965]
[1724877639287,0.0751,59506.0,59495.0,0.0008965]
[1724877639506,0.168078,59496.0,59495.0,0.0008965]
[1724877639985,0.840392,59496.0,59495.0,0.0008965]
[1724877640226,0.841392,59496.0,59495.0,0.0148965]
[1724877640634,1.177549,59496.0,59495.0,0.0148965]
[1724877640832,1.176549,59496.0,59495.0,0.0008965]
[1724877641137,1.68196919,59496.0,59495.0,0.0148965]
[1724877641340,1.33581219,59496.0,59495.0,0.0148965]
[1724877641545,1.33581219,59496.0,59495.0,0.0288965]
[1724877641749,1.33581219,59496.0,59495.0,0.0148965]
[1724877642167,1.33581219,59496.0,59495.0,0.0288965]
[1724877642400,1.33581219,59496.0,59495.0,0.0148965]
[1724877643077,1.33581219,59496.0,59495.0,0.0178965]
[1724877643299,1.43781219,59496.0,59495.0,0.0178965]
[1724877643549,1.77396919,59496.0,59495.0,0.0178965]
[1724877643755,1.77396919,59496.0,59495.0,0.0148965]
[1724877643963,1.77396919,59496.0,59495.0,0.0178965]
[1724877644214,1.43581219,59496.0,59495.0,0.0178965]
[1724877644401,1.409449,59496.0,59495.0,0.0178965]
[1724877644629,1.408449,59496.0,59495.0,0.0008965]
[1724877644841,1.408449,59496.0,59495.0,0.0028965]
[1724877645702,1.408449,59496.0,59495.0,0.0008965]
[1724877645915,1.418449,59496.0,59495.0,0.0008965]
[1724877646120,1.418449,59496.0,59495.0,0.0098965]
[1724877646328,1.276549,59496.0,59495.0,0.0098965]
[1724877646541,1.266549,59496.0,59495.0,0.0098965]
[1724877646757,0.834392,59496.0,59495.0,0.0098965]
[1724877647190,0.830392,59496.0,59495.0,0.0098965]
[1724877647445,0.1,59502.0,59496.0,0.1402]
[1724877647649,0.15277503,59513.0,59498.0,0.336145]
[1724877647650,0.336104,59506.0,59498.0,0.336145]
[1724877647852,0.0622,59514.0,59498.0,0.336145]
[1724877647853,0.02636289,59501.0,59498.0,0.336145]
[1724877648066,0.02636289,59501.0,59500.0,0.168067]
[1724877648272,0.02636289,59501.0,59500.0,0.62762739]
[1724877648478,0.02636289,59501.0,59500.0,0.63395029]
[1724877648708,0.02636289,59501.0,59500.0,0.97008429]
[1724877648919,0.02636289,59501.0,59500.0,0.63395029]
[1724877649128,0.02736289,59501.0,59500.0,0.63395029]
[1724877649352,0.02736289,59501.0,59500.0,1.04578429]
[1724877649556,0.02736289,59501.0,59500.0,0.70965029]
[1724877650186,0.02836289,59501.0,59500.0,0.71365029]
[1724877650402,0.02836289,59501.0,59500.0,1.04978429]
[1724877650613,0.02836289,59501.0,59500.0,1.04578429]
[1724877650614,0.02736289,59501.0,59500.0,1.04578429]
[1724877650857,0.16862079,59521.0,59517.0,0.0757]
[1724877651078,0.00061279,59521.0,59517.0,0.307417]
[1724877651322,0.02696646,59521.0,59517.0,0.1394]
[1724877651540,0.02696646,59521.0,59518.0,0.00725035]
[1724877651742,0.02696646,59521.0,59520.0,0.16801]
[1724877651955,0.02696646,59521.0,59520.0,0.023]
[1724877651956,0.00061279,59521.0,59520.0,0.023]
[1724877652163,0.00061279,59521.0,59520.0,0.10167651]
[1724877652381,0.16861979,59521.0,59520.0,0.0072436]
[1724877652631,0.84064979,59521.0,59520.0,0.0072436]
[1724877652844,0.84064979,59521.0,59517.0,0.0887]
[1724877652845,0.168016,59518.0,59517.0,0.0887]
[1724877653046,0.168016,59518.0,59517.0,0.09595372]
[1724877653660,0.504048,59518.0,59517.0,0.09595372]
[1724877653930,0.84008,59518.0,59517.0,0.00725372]
[1724877654138,0.33662779,59521.0,59502.0,1.58042]
[1724877654139,0.336054,59515.0,59508.0,0.0764]
[1724877654349,0.336037,59518.0,59508.0,0.0764]
[1724877654550,0.336037,59518.0,59509.0,0.00728073]
[1724877654767,0.504115,59510.0,59509.0,0.00728073]
[1724877655200,0.168048,59507.0,59503.0,0.1407]
[1724877655463,0.168038,59511.0,59506.0,0.16805]
[1724877655691,0.16804,59510.0,59506.0,0.16805]
[1724877655928,0.16804,59510.0,59507.0,0.05804742]
[1724877656164,0.168034,59512.0,59508.0,0.168043]
[1724877656373,0.336048,59516.0,59511.0,0.168034]
[1724877656374,0.168023,59516.0,59511.0,0.168034]
[1724877656611,0.168023,59516.0,59511.0,0.21917405]
[1724877656821,0.168019,59517.0,59513.0,0.168029]
[1724877657055,0.335995,59525.0,59514.0,0.00720919]
[1724877657265,0.504075,59515.0,59514.0,0.00720919]
[1724877657473,1.176173,59515.0,59514.0,0.00720919]
[1724877657689,1.176173,59515.0,59507.0,0.0947]
[1724877657690,0.336063,59513.0,59507.0,0.0947]
[1724877657914,0.336001,59524.0,59508.0,0.023]
[1724877658118,0.168025,59515.0,59511.0,0.168034]
[1724877658340,0.0263543,59512.0,59508.0,0.03022945]
[1724877658562,0.336051,59515.0,59507.0,0.0807]
[1724877658780,0.05519217,59531.0,59508.0,0.00336082]
[1724877658781,0.0263546,59512.0,59508.0,0.00336082]
[1724877659004,0.0263546,59512.0,59508.0,0.014]
[1724877659212,0.168036,59511.0,59507.0,0.248745]
[1724877659432,0.0263546,59512.0,59507.0,0.416794]
[1724877659645,0.0263546,59512.0,59508.0,0.014]
[1724877660068,0.168038,59511.0,59507.0,0.248746]
[1724877660570,0.84001971,59508.0,59507.0,0.014]
[1724877661039,0.336078,59510.0,59507.0,0.014]
[1724877661262,0.168044,59508.0,59507.0,0.028]
[1724877661472,0.168044,59508.0,59507.0,0.0568416]
[1724877661473,0.504133,59508.0,59507.0,0.0568416]
[1724877661693,0.0263546,59512.0,59506.0,0.336098]
[1724877661911,0.0263546,59512.0,59508.0,0.182043]
[1724877662112,0.1943886,59512.0,59508.0,0.2688682]
[1724877662346,0.1943886,59512.0,59508.0,0.2548682]
[1724877662801,0.1943896,59512.0,59508.0,0.0868252]
[1724877663026,0.1943896,59512.0,59507.0,0.196047]
[1724877663027,0.168038,59511.0,59507.0,0.196047]
[1724877663236,0.168038,59511.0,59507.0,0.182047]
[1724877663453,0.168039,59510.0,59507.0,0.014]
[1724877663656,0.168039,59510.0,59508.0,0.014]
[1724877663865,0.504124,59509.0,59508.0,0.014]
[1724877664141,0.840207,59509.0,59508.0,0.014]
[1724877664378,1.17629,59509.0,59508.0,0.014]
[1724877664790,1.176329,59507.0,59506.0,0.014]
[1724877664996,0.0263546,59512.0,59495.0,0.0805965]
[1724877664997,0.168073,59498.0,59495.0,0.0805965]
[1724877665212,0.336092,59508.0,59497.0,0.168074]
[1724877665447,0.412858,59514.0,59498.0,0.19293905]
[1724877665448,0.168064,59502.0,59498.0,0.19293905]
[1724877665681,0.168078,59496.0,59495.0,0.0805965]
[1724877665945,0.000818,59509.0,59495.0,0.0805965]
[1724877665946,0.02635854,59506.0,59495.0,0.0805965]
[1724877666181,0.504235,59496.0,59495.0,0.0008965]
[1724877666647,0.168078,59496.0,59495.0,0.0008965]
[1724877666897,0.504235,59496.0,59495.0,0.0008965]
[1724877667154,0.53059644,59496.0,59495.0,0.00816549]
[1724877667413,0.02636144,59496.0,59495.0,0.0008965]
[1724877667874,0.02636144,59496.0,59495.0,0.03460425]
[1724877668102,0.02636144,59496.0,59495.0,0.04187324]
[1724877668329,0.02636144,59496.0,59495.0,0.00816549]
[1724877668554,0.02636144,59496.0,59495.0,0.01416549]
[1724877668777,0.02636144,59496.0,59495.0,0.02816549]
[1724877668778,0.86675344,59496.0,59495.0,0.02816549]
[1724877668994,0.53059644,59496.0,59495.0,0.00816549]
[1724877669260,0.53059644,59496.0,59495.0,0.0148965]
[1724877669486,0.53159644,59496.0,59495.0,0.0248965]
[1724877669921,0.53159644,59496.0,59495.0,0.0108965]
[1724877670370,0.53159644,59496.0,59495.0,0.01816549]
[1724877670667,0.86775344,59496.0,59495.0,0.01816549]
[1724877671128,0.86775344,59496.0,59495.0,0.0108965]
[1724877671343,0.86775344,59496.0,59495.0,0.0148965]
[1724877671344,0.86675344,59496.0,59495.0,0.0148965]
[1724877672255,1.20291044,59496.0,59495.0,0.0148965]
[1724877672468,1.27841044,59496.0,59495.0,0.0148965]
[1724877672880,1.28141044,59496.0,59495.0,0.0288965]
[1724877673104,1.27941044,59496.0,59495.0,0.0148965]
[1724877673333,1.37941044,59496.0,59495.0,0.0148965]
[1724877673997,1.38041044,59496.0,59495.0,0.0008965]
[1724877674220,1.38041044,59496.0,59465.0,0.0767]
[1724877674221,0.336298,59471.0,59465.0,0.0767]
[1724877674435,0.336288,59473.0,59465.0,0.0767]
[1724877674680,0.08,59479.0,59467.0,0.10482755]
[1724877674888,0.168157,59468.0,59467.0,0.00644316]
[1724877675330,0.02637146,59477.0,59461.0,0.168176]
[1724877675538,0.336327,59466.0,59462.0,0.0655607]
[1724877675834,0.168165,59466.0,59462.0,0.24111422]
[1724877676106,0.02637146,59477.0,59462.0,0.00738052]
[1724877676107,0.168171,59463.0,59462.0,0.00738052]
[1724877676578,0.168169,59464.0,59460.0,0.253844]
[1724877676788,0.168169,59464.0,59462.0,0.00738052]
[1724877677010,0.168169,59464.0,59460.0,0.253844]
[1724877677011,0.168169,59464.0,59461.0,0.00738391]
[1724877677202,0.168169,59464.0,59463.0,0.006455]
[1724877677417,0.168171,59463.0,59462.0,0.00645796]
[1724877677636,0.168176,59462.0,59460.0,0.085665]
[1724877677847,0.16817,59464.0,59462.0,0.014]
[1724877678049,0.168171,59463.0,59462.0,0.014]
[1724877678254,0.504514,59463.0,59462.0,0.0148998]
[1724877678477,0.840857,59463.0,59462.0,0.0148998]
[1724877679030,0.840857,59463.0,59462.0,0.0288998]
[1724877679232,0.840857,59463.0,59462.0,0.0148998]
[1724877679439,0.504514,59463.0,59462.0,0.0148998]
[1724877679674,0.168171,59463.0,59462.0,0.0148998]
[1724877679883,0.504514,59463.0,59462.0,0.0148998]
[1724877680769,0.504514,59463.0,59462.0,0.0288998]
[1724877681900,0.840857,59463.0,59462.0,0.0288998]
[1724877683241,0.84065475,59463.0,59462.0,0.0288998]
[1724877683651,0.338274,59476.0,59462.0,0.0288998]
[1724877683652,0.29369717,59487.0,59462.0,0.0288998]
[1724877683881,0.1,59479.0,59468.0,0.168156]
[1724877684113,0.1,59479.0,59463.0,0.0665]
[1724877684321,0.336309,59469.0,59463.0,0.0665]
[1724877684747,0.168171,59463.0,59462.0,0.0933998]
[1724877684898,0.840857,59463.0,59462.0,0.0148998]
[1724877685102,0.840857,59463.0,59462.0,0.0058998]
[1724877686078,0.840857,59463.0,59462.0,0.0198998]
[1724877686285,0.840857,59463.0,59462.0,0.0058998]
[1724877686688,0.840857,59463.0,59462.0,0.0008998]
[1724877686985,0.840857,59463.0,59462.0,0.0148998]
[1724877687291,0.841857,59463.0,59462.0,0.0148998]
[1724877687639,0.9323127,59463.0,59462.0,0.0288998]
[1724877687838,0.841857,59463.0,59462.0,0.0148998]
[1724877688114,0.840857,59463.0,59462.0,0.0008998]
[1724877688405,0.841857,59463.0,59462.0,0.0288998]
[1724877688648,1.28157686,59463.0,59462.0,0.0288998]
[1724877689525,1.28157686,59463.0,59462.0,0.0148998]
[1724877690013,1.20357686,59463.0,59462.0,0.0008998]
[1724877690233,1.20457686,59463.0,59462.0,0.0148998]
[1724877690467,1.30457686,59463.0,59462.0,0.0148998]
[1724877690682,1.30357686,59463.0,59462.0,0.0008998]
[1724877690901,1.30357686,59463.0,59462.0,0.0148998]
[1724877691123,1.30457686,59463.0,59462.0,0.0148998]
[1724877691340,1.21710586,59463.0,59462.0,0.0148998]
[1724877691581,1.38427686,59463.0,59462.0,0.0268998]
[1724877691807,1.38427686,59463.0,59462.0,0.0028998]
[1724877692253,1.38427686,59463.0,59462.0,0.0168998]
[1724877692403,1.38427686,59463.0,59462.0,0.0028998]
[1724877692623,1.38427686,59463.0,59462.0,0.0148998]
[1724877692985,1.72061986,59463.0,59462.0,0.0128998]
[1724877693408,1.72061986,59463.0,59462.0,0.0178998]
[1724877693865,1.72061986,59463.0,59462.0,0.0008998]
[1724877694095,1.72161986,59463.0,59462.0,0.0008998]
[1724877694292,1.72161986,59463.0,59462.0,0.0148998]
[1724877694518,0.71259086,59463.0,59462.0,0.0008998]
[1724877694721,0.71159086,59463.0,59462.0,0.0008998]
[1724877694871,1.38427686,59463.0,59462.0,0.0138998]
[1724877695089,0.96823386,59463.0,59462.0,0.0008998]
[1724877695297,1.30457686,59463.0,59462.0,0.0008998]
[1724877695518,0.96823386,59463.0,59462.0,0.0148998]
[1724877695929,0.96823386,59463.0,59462.0,0.0008998]